[Event "Late-Titled-Tuesday-Blitz-May-07-2024"]
[Site "Chess.com"]
[Date "2024.05.07"]
[Round "7"]
[White "DrVelja"]
[Black "LikeWater"]
[Result "0-1"]
[WhiteElo "2968"]
[BlackElo "2710"]
[TimeControl "180+1"]
[EndTime "15:16:39 PDT"]
[Termination "LikeWater won by checkmate"]

1. e4 {[%clk 0:03:00.9]} 1... e5 {[%clk 0:02:58.6]} 2. Nf3 {[%clk 0:03:00.4]}
2... Nc6 {[%clk 0:02:58.5]} 3. Bb5 {[%clk 0:03:01]} 3... a6 {[%clk 0:02:56.7]}
4. Ba4 {[%clk 0:03:01.7]} 4... Nf6 {[%clk 0:02:56.1]} 5. O-O {[%clk 0:03:01.9]}
5... Be7 {[%clk 0:02:56.1]} 6. Re1 {[%clk 0:03:01.5]} 6... b5 {[%clk 0:02:55.7]}
7. Bb3 {[%clk 0:03:02.2]} 7... d6 {[%clk 0:02:55.9]} 8. a4 {[%clk 0:03:02.9]}
8... Bd7 {[%clk 0:02:51.5]} 9. d3 {[%clk 0:03:02.4]} 9... O-O {[%clk 0:02:51.1]}
10. c3 {[%clk 0:03:02.9]} 10... Na5 {[%clk 0:02:50.2]} 11. Bc2 {[%clk
0:03:02.9]} 11... c5 {[%clk 0:02:50.1]} 12. Bg5 {[%clk 0:03:01.8]} 12... Nc6
{[%clk 0:02:34.7]} 13. Nbd2 {[%clk 0:03:01.4]} 13... Nh5 {[%clk 0:02:27.2]} 14.
axb5 {[%clk 0:02:59.2]} 14... Bxg5 {[%clk 0:02:13.8]} 15. bxc6 {[%clk
0:03:00.1]} 15... Bxc6 {[%clk 0:02:14.5]} 16. Nc4 {[%clk 0:02:50.8]} 16... Nf4
{[%clk 0:02:10]} 17. g3 {[%clk 0:02:39]} 17... Ne6 {[%clk 0:02:09.3]} 18. Nxg5
{[%clk 0:02:32.6]} 18... Nxg5 {[%clk 0:01:57.7]} 19. Ne3 {[%clk 0:02:31]} 19...
a5 {[%clk 0:01:41.6]} 20. Ba4 {[%clk 0:02:21.4]} 20... Bb7 {[%clk 0:01:36.2]}
21. Bb3 {[%clk 0:02:21.4]} 21... Ne6 {[%clk 0:01:25.9]} 22. Bd5 {[%clk
0:02:12.7]} 22... Bxd5 {[%clk 0:01:24.2]} 23. Nxd5 {[%clk 0:02:13.6]} 23... Nc7
{[%clk 0:01:24.7]} 24. Nb6 {[%clk 0:02:11.8]} 24... Ra6 {[%clk 0:01:22.7]} 25.
Nc4 {[%clk 0:02:12.5]} 25... Qa8 {[%clk 0:01:19.7]} 26. Qa4 {[%clk 0:02:06.6]}
26... Rb8 {[%clk 0:01:14.8]} 27. Ra2 {[%clk 0:01:54.4]} 27... h6 {[%clk
0:00:52.7]} 28. Rea1 {[%clk 0:01:53.3]} 28... d5 {[%clk 0:00:52.8]} 29. exd5
{[%clk 0:01:52.5]} 29... Qxd5 {[%clk 0:00:49.1]} 30. Qc2 {[%clk 0:01:52.8]}
30... Ne6 {[%clk 0:00:44]} 31. h4 {[%clk 0:01:25.9]} 31... Nf4 {[%clk
0:00:28.7]} 32. Ne3 {[%clk 0:01:25.9]} 32... Qf3 {[%clk 0:00:28.7]} 33. Kh2
{[%clk 0:01:16.2]} 33... Ne2 {[%clk 0:00:21]} 34. Rf1 {[%clk 0:00:45.3]} 34...
Rg6 {[%clk 0:00:21.1]} 35. Qd1 {[%clk 0:00:39.5]} 35... Rxg3 {[%clk 0:00:20.6]}
36. Qxe2 {[%clk 0:00:05.1]} 36... Rh3+ {[%clk 0:00:20.3]} 37. Kg1 {[%clk
0:00:06]} 37... Rh1# {[%clk 0:00:20.7]} 0-1

[Event "Late-Titled-Tuesday-Blitz-May-07-2024"]
[Site "Chess.com"]
[Date "2024.05.07"]
[Round "7"]
[White "APOKALIPSA13"]
[Black "Flaccidmoves"]
[Result "1-0"]
[WhiteElo "2202"]
[BlackElo "2373"]
[TimeControl "180+1"]
[EndTime "15:16:40 PDT"]
[Termination "APOKALIPSA13 won on time"]

1. e4 {[%clk 0:02:59]} 1... d5 {[%clk 0:02:55.3]} 2. exd5 {[%clk 0:02:58.6]}
2... Nf6 {[%clk 0:02:54.8]} 3. Nc3 {[%clk 0:02:58]} 3... Nxd5 {[%clk 0:02:54.2]}
4. Nf3 {[%clk 0:02:58.1]} 4... Bg4 {[%clk 0:02:40.4]} 5. Bc4 {[%clk 0:02:56.4]}
5... e6 {[%clk 0:02:40.3]} 6. Qe2 {[%clk 0:02:54]} 6... Be7 {[%clk 0:02:34.2]}
7. Bxd5 {[%clk 0:02:49.8]} 7... exd5 {[%clk 0:02:35.1]} 8. Qb5+ {[%clk
0:02:49.5]} 8... c6 {[%clk 0:02:20.3]} 9. Qxb7 {[%clk 0:02:47.3]} 9... Bxf3
{[%clk 0:02:16.6]} 10. Qxa8 {[%clk 0:02:34.7]} 10... Qc7 {[%clk 0:01:43.8]} 11.
gxf3 {[%clk 0:02:29.3]} 11... O-O {[%clk 0:01:42.3]} 12. O-O {[%clk 0:02:14.9]}
12... Nd7 {[%clk 0:01:39.1]} 13. Nxd5 {[%clk 0:02:10.4]} 13... cxd5 {[%clk
0:01:13]} 14. Qxd5 {[%clk 0:02:11.3]} 14... Nf6 {[%clk 0:01:08.6]} 15. Qf5
{[%clk 0:02:06.9]} 15... g6 {[%clk 0:01:05.8]} 16. Qh3 {[%clk 0:01:58.8]} 16...
Nh5 {[%clk 0:01:01.9]} 17. d4 {[%clk 0:01:56.6]} 17... Qxc2 {[%clk 0:00:59.4]}
18. Bh6 {[%clk 0:01:51.1]} 18... Rd8 {[%clk 0:00:58.8]} 19. Rae1 {[%clk
0:01:43.6]} 19... Bf6 {[%clk 0:00:55.1]} 20. Rc1 {[%clk 0:01:39]} 20... Qxb2
{[%clk 0:00:52.6]} 21. Rc8 {[%clk 0:01:39.1]} 21... Qxd4 {[%clk 0:00:47.9]} 22.
Rfc1 {[%clk 0:01:34.8]} 22... Nf4 {[%clk 0:00:32]} 23. Rxd8+ {[%clk 0:01:27.7]}
23... Bxd8 {[%clk 0:00:32.9]} 24. Bxf4 {[%clk 0:01:20.4]} 24... Qxf4 {[%clk
0:00:33.8]} 25. Rc8 {[%clk 0:01:19.1]} 25... Qg5+ {[%clk 0:00:33.6]} 26. Qg4
{[%clk 0:01:17]} 26... Qe7 {[%clk 0:00:28.8]} 27. Qd4 {[%clk 0:01:07.8]} 27...
Qg5+ {[%clk 0:00:28]} 28. Kf1 {[%clk 0:01:07.6]} 28... Qb5+ {[%clk 0:00:28.2]}
29. Qc4 {[%clk 0:01:02.2]} 29... Qxc4+ {[%clk 0:00:21.2]} 30. Rxc4 {[%clk
0:01:01.8]} 30... Bb6 {[%clk 0:00:21.2]} 31. a4 {[%clk 0:00:58.9]} 31... Kg7
{[%clk 0:00:20.8]} 32. Rc6 {[%clk 0:00:58.5]} 32... h5 {[%clk 0:00:20.1]} 33.
Kg2 {[%clk 0:00:58.4]} 33... g5 {[%clk 0:00:17.8]} 34. h4 {[%clk 0:00:57.9]}
34... gxh4 {[%clk 0:00:16.4]} 35. Rc4 {[%clk 0:00:43.6]} 35... Kg6 {[%clk
0:00:13.8]} 36. Rxh4 {[%clk 0:00:43.3]} 36... f5 {[%clk 0:00:12]} 37. Rc4 {[%clk
0:00:42]} 37... Kg5 {[%clk 0:00:11.5]} 38. f4+ {[%clk 0:00:39.4]} 38... Kg4
{[%clk 0:00:10.5]} 39. f3+ {[%clk 0:00:39.4]} 39... Kh4 {[%clk 0:00:04.4]} 40.
Rc1 {[%clk 0:00:39]} 1-0

[Event "Late-Titled-Tuesday-Blitz-May-07-2024"]
[Site "Chess.com"]
[Date "2024.05.07"]
[Round "7"]
[White "nindjaxx8"]
[Black "XDPS"]
[Result "0-1"]
[WhiteElo "2637"]
[BlackElo "2833"]
[TimeControl "180+1"]
[EndTime "15:16:41 PDT"]
[Termination "XDPS won by checkmate"]

1. d4 {[%clk 0:03:00.9]} 1... d5 {[%clk 0:02:59.4]} 2. c4 {[%clk 0:02:59.4]}
2... e6 {[%clk 0:02:59.4]} 3. Nc3 {[%clk 0:02:56.6]} 3... h6 {[%clk 0:02:59.9]}
4. Nf3 {[%clk 0:02:52.3]} 4... Nf6 {[%clk 0:02:59.8]} 5. Bf4 {[%clk 0:02:51.3]}
5... Bd6 {[%clk 0:02:56.3]} 6. Bxd6 {[%clk 0:02:49.9]} 6... Qxd6 {[%clk
0:02:57.2]} 7. e3 {[%clk 0:02:50.1]} 7... O-O {[%clk 0:02:57.3]} 8. Be2 {[%clk
0:02:49.9]} 8... Rd8 {[%clk 0:02:56.4]} 9. O-O {[%clk 0:02:49.3]} 9... a6 {[%clk
0:02:55.5]} 10. c5 {[%clk 0:02:42.5]} 10... Qe7 {[%clk 0:02:55.6]} 11. Rc1
{[%clk 0:02:40.6]} 11... Nc6 {[%clk 0:02:54.3]} 12. a3 {[%clk 0:02:40.7]} 12...
e5 {[%clk 0:02:54.6]} 13. b4 {[%clk 0:02:37.5]} 13... Bg4 {[%clk 0:02:47.8]} 14.
dxe5 {[%clk 0:02:31.8]} 14... Nxe5 {[%clk 0:02:32.1]} 15. Nxe5 {[%clk
0:02:29.8]} 15... Bxe2 {[%clk 0:02:32.7]} 16. Nxe2 {[%clk 0:02:29.1]} 16... Qxe5
{[%clk 0:02:32.8]} 17. Nd4 {[%clk 0:02:29.5]} 17... h5 {[%clk 0:02:24.5]} 18. h3
{[%clk 0:02:28.4]} 18... h4 {[%clk 0:02:23.8]} 19. Qf3 {[%clk 0:02:26.7]} 19...
g6 {[%clk 0:02:23.2]} 20. Rfd1 {[%clk 0:02:26.1]} 20... Kg7 {[%clk 0:02:22.7]}
21. Ne2 {[%clk 0:02:22.6]} 21... Ne4 {[%clk 0:02:19.1]} 22. Rd4 {[%clk
0:02:20.4]} 22... c6 {[%clk 0:02:15.2]} 23. Rcd1 {[%clk 0:02:19.4]} 23... Re8
{[%clk 0:02:14]} 24. Qf4 {[%clk 0:02:07.4]} 24... Qe7 {[%clk 0:02:06.9]} 25.
R4d3 {[%clk 0:02:02]} 25... a5 {[%clk 0:02:01.7]} 26. Nc3 {[%clk 0:01:55.7]}
26... axb4 {[%clk 0:01:59.8]} 27. axb4 {[%clk 0:01:42.3]} 27... Nxc3 {[%clk
0:01:32.8]} 28. Rxc3 {[%clk 0:01:43.2]} 28... Qe4 {[%clk 0:01:33.1]} 29. Rd4
{[%clk 0:01:26.1]} 29... Qb1+ {[%clk 0:01:09.2]} 30. Kh2 {[%clk 0:01:25.6]}
30... Ra1 {[%clk 0:00:50.8]} 31. Qxh4 {[%clk 0:01:20.1]} 31... Qh1+ {[%clk
0:00:50.6]} 32. Kg3 {[%clk 0:01:12.4]} 32... Rg1 {[%clk 0:00:51.1]} 33. Kf3
{[%clk 0:01:03.1]} 33... Qxg2+ {[%clk 0:00:40.8]} 34. Ke2 {[%clk 0:01:02.9]}
34... Qf1+ {[%clk 0:00:40.4]} 35. Kf3 {[%clk 0:01:03.2]} 35... Rh8 {[%clk
0:00:36.4]} 36. Qe7 {[%clk 0:00:50.3]} 36... Rxh3+ {[%clk 0:00:33.2]} 37. Kf4
{[%clk 0:00:47.5]} 37... Rh5 {[%clk 0:00:18.8]} 38. Kf3 {[%clk 0:00:40.1]} 38...
Rg3+ {[%clk 0:00:09.3]} 39. Kxg3 {[%clk 0:00:33.8]} 39... Qh3+ {[%clk
0:00:09.7]} 40. Kf4 {[%clk 0:00:31.8]} 40... Rf5# {[%clk 0:00:05.6]} 0-1

[Event "Late-Titled-Tuesday-Blitz-May-07-2024"]
[Site "Chess.com"]
[Date "2024.05.07"]
[Round "7"]
[White "MuhittinBuker"]
[Black "ploxoi"]
[Result "1-0"]
[WhiteElo "2217"]
[BlackElo "2327"]
[TimeControl "180+1"]
[EndTime "15:16:41 PDT"]
[Termination "MuhittinBuker won on time"]

1. d4 {[%clk 0:03:00.9]} 1... d5 {[%clk 0:02:58.8]} 2. c4 {[%clk 0:02:58.4]}
2... e6 {[%clk 0:02:58.6]} 3. Nc3 {[%clk 0:02:57.9]} 3... c6 {[%clk 0:02:58.2]}
4. cxd5 {[%clk 0:02:55.5]} 4... exd5 {[%clk 0:02:57.8]} 5. Nf3 {[%clk
0:02:55.7]} 5... Bf5 {[%clk 0:02:56.1]} 6. Bf4 {[%clk 0:02:55.5]} 6... Bd6
{[%clk 0:02:56.1]} 7. Bxd6 {[%clk 0:02:54.6]} 7... Qxd6 {[%clk 0:02:55.7]} 8. e3
{[%clk 0:02:55.2]} 8... Nf6 {[%clk 0:02:53.6]} 9. Bd3 {[%clk 0:02:55.6]} 9...
Bxd3 {[%clk 0:02:50.9]} 10. Qxd3 {[%clk 0:02:56.5]} 10... Nbd7 {[%clk
0:02:51.1]} 11. O-O {[%clk 0:02:56.1]} 11... O-O {[%clk 0:02:50.4]} 12. b4
{[%clk 0:02:54.7]} 12... Nb6 {[%clk 0:02:45.5]} 13. b5 {[%clk 0:02:51.9]} 13...
c5 {[%clk 0:02:31.9]} 14. dxc5 {[%clk 0:02:47.9]} 14... Qxc5 {[%clk 0:02:32.8]}
15. Nd4 {[%clk 0:02:46.9]} 15... Rac8 {[%clk 0:02:20.7]} 16. Rac1 {[%clk
0:02:45.6]} 16... Ne4 {[%clk 0:02:13.3]} 17. Nce2 {[%clk 0:02:43.5]} 17... Qb4
{[%clk 0:02:01.6]} 18. Nf5 {[%clk 0:02:31.5]} 18... Rfd8 {[%clk 0:01:30.7]} 19.
Rxc8 {[%clk 0:02:28.8]} 19... Rxc8 {[%clk 0:01:29.5]} 20. a3 {[%clk 0:02:26.9]}
20... Qc5 {[%clk 0:01:25.6]} 21. h3 {[%clk 0:02:21.4]} 21... Qf8 {[%clk
0:01:17.3]} 22. a4 {[%clk 0:02:01.3]} 22... Rd8 {[%clk 0:01:04.7]} 23. a5 {[%clk
0:02:00.2]} 23... Nc4 {[%clk 0:01:03]} 24. a6 {[%clk 0:01:55.6]} 24... bxa6
{[%clk 0:01:01.9]} 25. bxa6 {[%clk 0:01:55.3]} 25... Qb4 {[%clk 0:00:53.4]} 26.
Rb1 {[%clk 0:01:34.9]} 26... Qa5 {[%clk 0:00:49]} 27. Qd4 {[%clk 0:01:32]} 27...
Nf6 {[%clk 0:00:34.6]} 28. Nh6+ {[%clk 0:01:27.5]} 28... gxh6 {[%clk 0:00:15.3]}
29. Qxf6 {[%clk 0:01:27.3]} 29... Re8 {[%clk 0:00:14.9]} 30. Rb7 {[%clk
0:01:22.5]} 30... Rf8 {[%clk 0:00:15.2]} 31. Nf4 {[%clk 0:01:19.5]} 31... Qe1+
{[%clk 0:00:14.3]} 32. Kh2 {[%clk 0:01:17.6]} 32... Qxf2 {[%clk 0:00:14.5]} 33.
Qxh6 {[%clk 0:01:09.8]} 33... Nxe3 {[%clk 0:00:13.3]} 34. Qg5+ {[%clk 0:01:09]}
34... Kh8 {[%clk 0:00:13.6]} 35. Nh5 {[%clk 0:00:49.5]} 35... Nf1+ {[%clk
0:00:07.1]} 36. Kh1 {[%clk 0:00:49.3]} 36... Qd4 {[%clk 0:00:04.4]} 37. Nf6
{[%clk 0:00:43.6]} 37... Qa1 {[%clk 0:00:03.5]} 38. Rxf7 {[%clk 0:00:40.2]}
38... Ne3+ {[%clk 0:00:00.9]} 39. Kh2 {[%clk 0:00:36.9]} 39... Nf1+ {[%clk
0:00:01.5]} 40. Kg1 {[%clk 0:00:36.4]} 1-0

[Event "Late-Titled-Tuesday-Blitz-May-07-2024"]
[Site "Chess.com"]
[Date "2024.05.07"]
[Round "7"]
[White "Arteler"]
[Black "protectiago"]
[Result "0-1"]
[WhiteElo "2267"]
[BlackElo "2070"]
[TimeControl "180+1"]
[EndTime "15:16:41 PDT"]
[Termination "protectiago won on time"]

1. d4 {[%clk 0:03:00.9]} 1... d5 {[%clk 0:02:51.5]} 2. c4 {[%clk 0:03:00]} 2...
dxc4 {[%clk 0:02:51.4]} 3. e3 {[%clk 0:02:57]} 3... e6 {[%clk 0:02:51.3]} 4.
Bxc4 {[%clk 0:02:55.3]} 4... Nf6 {[%clk 0:02:51.6]} 5. Nc3 {[%clk 0:02:54.5]}
5... Be7 {[%clk 0:02:52]} 6. Nf3 {[%clk 0:02:51.3]} 6... O-O {[%clk 0:02:50.2]}
7. O-O {[%clk 0:02:50.6]} 7... c5 {[%clk 0:02:49.8]} 8. dxc5 {[%clk 0:02:47.7]}
8... Bxc5 {[%clk 0:02:43.2]} 9. Qc2 {[%clk 0:02:43]} 9... Nbd7 {[%clk
0:02:40.3]} 10. Rd1 {[%clk 0:02:41.7]} 10... Qe7 {[%clk 0:02:36.3]} 11. a3
{[%clk 0:02:33.7]} 11... a6 {[%clk 0:02:26.9]} 12. b4 {[%clk 0:02:34]} 12... Ba7
{[%clk 0:02:26.4]} 13. Bb2 {[%clk 0:02:33.1]} 13... b5 {[%clk 0:02:25]} 14. Bd3
{[%clk 0:02:29]} 14... Bb7 {[%clk 0:02:24]} 15. Ne4 {[%clk 0:02:08.8]} 15...
Rac8 {[%clk 0:02:15.4]} 16. Qb1 {[%clk 0:02:07.8]} 16... h6 {[%clk 0:01:39.2]}
17. Nxf6+ {[%clk 0:01:45.1]} 17... Nxf6 {[%clk 0:01:38.3]} 18. Nd4 {[%clk
0:01:33.5]} 18... Bb8 {[%clk 0:01:18.6]} 19. Ne2 {[%clk 0:01:15.7]} 19... Ng4
{[%clk 0:01:15.1]} 20. Ng3 {[%clk 0:00:58.7]} 20... Qh4 {[%clk 0:01:06.5]} 21.
Be4 {[%clk 0:00:30.3]} 21... Qxh2+ {[%clk 0:01:04.4]} 22. Kf1 {[%clk 0:00:29]}
22... Bxg3 {[%clk 0:00:37.4]} 23. Bxb7 {[%clk 0:00:27]} 23... Rc7 {[%clk
0:00:14.2]} 24. Qe4 {[%clk 0:00:17.2]} 24... Nxf2 {[%clk 0:00:12.3]} 25. Qf3
{[%clk 0:00:12.7]} 25... Nxd1 {[%clk 0:00:11.6]} 26. Rxd1 {[%clk 0:00:12.3]}
26... Rc2 {[%clk 0:00:10.7]} 27. Rd2 {[%clk 0:00:01.7]} 27... Rxd2 {[%clk
0:00:09.8]} 0-1

[Event "Late-Titled-Tuesday-Blitz-May-07-2024"]
[Site "Chess.com"]
[Date "2024.05.07"]
[Round "7"]
[White "dealshark"]
[Black "schondeln"]
[Result "1-0"]
[WhiteElo "2534"]
[BlackElo "2349"]
[TimeControl "180+1"]
[EndTime "15:16:42 PDT"]
[Termination "dealshark won on time"]

1. e4 {[%clk 0:03:00.9]} 1... d5 {[%clk 0:02:59.3]} 2. exd5 {[%clk 0:02:58.7]}
2... Qxd5 {[%clk 0:03:00.2]} 3. Nc3 {[%clk 0:02:58.5]} 3... Qa5 {[%clk 0:03:00]}
4. d4 {[%clk 0:02:58.5]} 4... Nf6 {[%clk 0:03:00.1]} 5. Nf3 {[%clk 0:02:59.1]}
5... Bf5 {[%clk 0:02:59.9]} 6. Bc4 {[%clk 0:02:58.7]} 6... e6 {[%clk 0:02:59.9]}
7. Bd2 {[%clk 0:02:58.2]} 7... Bb4 {[%clk 0:02:59.4]} 8. O-O {[%clk 0:02:57.1]}
8... O-O {[%clk 0:02:55.1]} 9. a3 {[%clk 0:02:55.4]} 9... Bxc3 {[%clk
0:02:54.4]} 10. Bxc3 {[%clk 0:02:56.1]} 10... Qb6 {[%clk 0:02:54.4]} 11. Qe2
{[%clk 0:02:52.7]} 11... Nc6 {[%clk 0:02:44.7]} 12. Rad1 {[%clk 0:02:51.6]}
12... Rad8 {[%clk 0:02:43.6]} 13. h3 {[%clk 0:02:51.6]} 13... Rfe8 {[%clk
0:02:38.5]} 14. b4 {[%clk 0:02:42.6]} 14... a6 {[%clk 0:02:34.1]} 15. Rfe1
{[%clk 0:02:40.7]} 15... h6 {[%clk 0:02:33.4]} 16. Bb3 {[%clk 0:02:32.8]} 16...
Be4 {[%clk 0:02:05.7]} 17. Ba4 {[%clk 0:02:06.9]} 17... Rf8 {[%clk 0:01:48.8]}
18. Bb2 {[%clk 0:02:02]} 18... a5 {[%clk 0:01:10.9]} 19. c3 {[%clk 0:01:56.5]}
19... axb4 {[%clk 0:01:10.1]} 20. axb4 {[%clk 0:01:54.9]} 20... Bxf3 {[%clk
0:00:39.5]} 21. Qxf3 {[%clk 0:01:54.4]} 21... Ne7 {[%clk 0:00:39.6]} 22. Bc2
{[%clk 0:01:49.5]} 22... Qd6 {[%clk 0:00:32.8]} 23. Bc1 {[%clk 0:01:45.9]} 23...
Ned5 {[%clk 0:00:28.7]} 24. g3 {[%clk 0:01:44]} 24... b5 {[%clk 0:00:28.4]} 25.
Re5 {[%clk 0:01:37.1]} 25... Rfe8 {[%clk 0:00:28]} 26. Rde1 {[%clk 0:01:36.2]}
26... c6 {[%clk 0:00:28.3]} 27. g4 {[%clk 0:01:32.5]} 27... g5 {[%clk 0:00:22]}
28. Qd3 {[%clk 0:01:27.3]} 28... Ra8 {[%clk 0:00:15.4]} 29. Bd2 {[%clk
0:01:14.4]} 29... Ra2 {[%clk 0:00:14.5]} 30. Bb1 {[%clk 0:01:09.6]} 30... Rb2
{[%clk 0:00:14.3]} 31. Bc1 {[%clk 0:01:07.3]} 31... Rb3 {[%clk 0:00:14.4]} 32.
Bd2 {[%clk 0:01:05.6]} 32... Nxb4 {[%clk 0:00:14.5]} 33. Qg3 {[%clk 0:00:58.4]}
33... Qe7 {[%clk 0:00:08.3]} 34. h4 {[%clk 0:00:56.8]} 34... Nbd5 {[%clk
0:00:05.6]} 35. hxg5 {[%clk 0:00:56.6]} 35... hxg5 {[%clk 0:00:05.6]} 36. Bxg5
{[%clk 0:00:56.1]} 36... Qf8 {[%clk 0:00:05.7]} 37. Qh4 {[%clk 0:00:52.4]} 37...
Qg7 {[%clk 0:00:05.5]} 38. Bxf6 {[%clk 0:00:48.5]} 38... Qxf6 {[%clk 0:00:05.8]}
39. g5 {[%clk 0:00:34.6]} 39... Qg7 {[%clk 0:00:05]} 40. g6 {[%clk 0:00:33.1]}
1-0

[Event "Late-Titled-Tuesday-Blitz-May-07-2024"]
[Site "Chess.com"]
[Date "2024.05.07"]
[Round "7"]
[White "Blackmind96"]
[Black "ReadySkate"]
[Result "1-0"]
[WhiteElo "2895"]
[BlackElo "2715"]
[TimeControl "180+1"]
[EndTime "15:16:45 PDT"]
[Termination "Blackmind96 won by resignation"]

1. d4 {[%clk 0:03:00.9]} 1... Nf6 {[%clk 0:02:59.7]} 2. c4 {[%clk 0:03:00]} 2...
g6 {[%clk 0:02:59.9]} 3. Nc3 {[%clk 0:03:00.2]} 3... d5 {[%clk 0:03:00.5]} 4.
Nf3 {[%clk 0:03:00.4]} 4... Bg7 {[%clk 0:03:00.3]} 5. Bg5 {[%clk 0:03:01.3]}
5... Ne4 {[%clk 0:03:00.1]} 6. Bf4 {[%clk 0:03:01.8]} 6... Nxc3 {[%clk
0:03:00.2]} 7. bxc3 {[%clk 0:03:02.7]} 7... dxc4 {[%clk 0:03:00.8]} 8. e3 {[%clk
0:03:03.2]} 8... O-O {[%clk 0:03:00.1]} 9. Bxc4 {[%clk 0:03:03.1]} 9... c5
{[%clk 0:03:00.8]} 10. O-O {[%clk 0:03:03.7]} 10... Nc6 {[%clk 0:03:00.9]} 11.
Rc1 {[%clk 0:03:04.2]} 11... Bf5 {[%clk 0:03:00.6]} 12. h3 {[%clk 0:03:02.7]}
12... Rc8 {[%clk 0:03:00.9]} 13. Qa4 {[%clk 0:03:03]} 13... cxd4 {[%clk
0:02:56]} 14. cxd4 {[%clk 0:03:02.9]} 14... a6 {[%clk 0:02:56.5]} 15. Qa3 {[%clk
0:03:02.6]} 15... Be4 {[%clk 0:02:54.8]} 16. Rfd1 {[%clk 0:02:55.2]} 16... Bxf3
{[%clk 0:02:50.8]} 17. gxf3 {[%clk 0:02:56.1]} 17... Qd7 {[%clk 0:02:51.4]} 18.
Kg2 {[%clk 0:02:52.9]} 18... Qf5 {[%clk 0:02:45.1]} 19. Bg3 {[%clk 0:02:50.2]}
19... e6 {[%clk 0:02:27.6]} 20. Bd3 {[%clk 0:02:41.2]} 20... Qh5 {[%clk
0:02:24.1]} 21. Rb1 {[%clk 0:02:32]} 21... Qa5 {[%clk 0:02:19]} 22. Bd6 {[%clk
0:02:20.7]} 22... Rfd8 {[%clk 0:02:00.6]} 23. Be4 {[%clk 0:02:20.1]} 23... Qg5+
{[%clk 0:01:58]} 24. Bg3 {[%clk 0:02:12]} 24... Qa5 {[%clk 0:01:49.6]} 25. Qxa5
{[%clk 0:02:11.4]} 25... Nxa5 {[%clk 0:01:50.5]} 26. Bxb7 {[%clk 0:02:12]} 26...
Rc2 {[%clk 0:01:48.5]} 27. Bxa6 {[%clk 0:02:10.3]} 27... Ra8 {[%clk 0:01:47.3]}
28. Bd3 {[%clk 0:02:04.5]} 28... Rxa2 {[%clk 0:01:45.9]} 29. Ra1 {[%clk
0:02:00.9]} 29... Nc6 {[%clk 0:00:33.9]} 30. Rxa2 {[%clk 0:01:58.8]} 30... Rxa2
{[%clk 0:00:34.3]} 31. Rc1 {[%clk 0:01:58.2]} 31... Ne7 {[%clk 0:00:33.4]} 32.
Rc7 {[%clk 0:01:53.3]} 32... Bf8 {[%clk 0:00:32.5]} 33. Be4 {[%clk 0:01:46.9]}
33... f5 {[%clk 0:00:28.8]} 34. Bd3 {[%clk 0:01:46]} 34... Nd5 {[%clk 0:00:28]}
35. Rc8 {[%clk 0:01:28]} 35... Nxe3+ {[%clk 0:00:26.5]} 36. Kh2 {[%clk
0:01:24.9]} 36... Kf7 {[%clk 0:00:13.8]} 37. Rc7+ {[%clk 0:01:14.4]} 37... Kg8
{[%clk 0:00:13.2]} 38. Rc6 {[%clk 0:01:12.6]} 38... Nd5 {[%clk 0:00:10.3]} 39.
Rxe6 {[%clk 0:01:10.1]} 39... f4 {[%clk 0:00:09.6]} 40. Bh4 {[%clk 0:01:04.8]}
40... Kg7 {[%clk 0:00:07.5]} 41. Bc4 {[%clk 0:01:04.4]} 41... Ra5 {[%clk
0:00:03.3]} 42. Re5 {[%clk 0:01:04.4]} 42... Nb6 {[%clk 0:00:02.4]} 43. Rxa5
{[%clk 0:01:01.5]} 43... Nxc4 {[%clk 0:00:03]} 44. Ra7+ {[%clk 0:01:02.1]} 44...
Kh6 {[%clk 0:00:01.1]} 45. Bf6 {[%clk 0:01:00.3]} 45... g5 {[%clk 0:00:02]} 46.
Rf7 {[%clk 0:00:58.5]} 46... Kg6 {[%clk 0:00:02.5]} 47. Rxf8 {[%clk 0:00:58.6]}
1-0

[Event "Late-Titled-Tuesday-Blitz-May-07-2024"]
[Site "Chess.com"]
[Date "2024.05.07"]
[Round "7"]
[White "CombativeWombat"]
[Black "hikaruchija"]
[Result "0-1"]
[WhiteElo "2336"]
[BlackElo "2513"]
[TimeControl "180+1"]
[EndTime "15:16:46 PDT"]
[Termination "hikaruchija won on time"]

1. e4 {[%clk 0:03:00.9]} 1... c5 {[%clk 0:02:54.2]} 2. Nf3 {[%clk 0:03:01.1]}
2... e6 {[%clk 0:02:53.9]} 3. d4 {[%clk 0:03:01.6]} 3... cxd4 {[%clk 0:02:54.6]}
4. Nxd4 {[%clk 0:03:02.3]} 4... a6 {[%clk 0:02:54.4]} 5. Be2 {[%clk 0:03:02.1]}
5... Nf6 {[%clk 0:02:50.7]} 6. Nc3 {[%clk 0:03:02]} 6... Qc7 {[%clk 0:02:50.8]}
7. O-O {[%clk 0:03:01]} 7... Nc6 {[%clk 0:02:49.1]} 8. Be3 {[%clk 0:02:59.1]}
8... b5 {[%clk 0:02:48]} 9. Nxc6 {[%clk 0:02:58.3]} 9... dxc6 {[%clk 0:02:48.9]}
10. f4 {[%clk 0:02:54.7]} 10... b4 {[%clk 0:02:37.6]} 11. Na4 {[%clk 0:02:54.7]}
11... c5 {[%clk 0:02:26.5]} 12. Bf3 {[%clk 0:02:34.5]} 12... Bb7 {[%clk
0:02:23.3]} 13. e5 {[%clk 0:02:20.8]} 13... Nd5 {[%clk 0:02:21.9]} 14. Bd2
{[%clk 0:02:00.5]} 14... Rd8 {[%clk 0:02:08.3]} 15. Qe1 {[%clk 0:01:58.3]} 15...
Be7 {[%clk 0:01:45.5]} 16. c4 {[%clk 0:01:51.1]} 16... bxc3 {[%clk 0:01:09]} 17.
Nxc3 {[%clk 0:01:43.4]} 17... O-O {[%clk 0:01:09.9]} 18. Rc1 {[%clk 0:01:38.3]}
18... Nb4 {[%clk 0:01:07.8]} 19. Ne4 {[%clk 0:00:54]} 19... Nd3 {[%clk
0:01:04.9]} 20. Qg3 {[%clk 0:00:54.3]} 20... Nxc1 {[%clk 0:01:03.8]} 21. Bxc1
{[%clk 0:00:53.3]} 21... Bxe4 {[%clk 0:01:01.3]} 22. Bxe4 {[%clk 0:00:53.3]}
22... Rd4 {[%clk 0:01:00]} 23. Bc2 {[%clk 0:00:39.1]} 23... Rfd8 {[%clk
0:00:56.2]} 24. f5 {[%clk 0:00:39.1]} 24... exf5 {[%clk 0:00:54.4]} 25. Bxf5
{[%clk 0:00:27.3]} 25... Rd1 {[%clk 0:00:43.5]} 26. Bc2 {[%clk 0:00:10.9]} 26...
Rxf1+ {[%clk 0:00:42]} 27. Kxf1 {[%clk 0:00:11.8]} 27... g6 {[%clk 0:00:38.2]}
28. Bf4 {[%clk 0:00:08.5]} 28... Qd7 {[%clk 0:00:37.1]} 29. Qe3 {[%clk
0:00:07.9]} 29... Qd5 {[%clk 0:00:35.1]} 30. Bb3 {[%clk 0:00:06.8]} 30... Qd3+
{[%clk 0:00:34.8]} 31. Qxd3 {[%clk 0:00:06.8]} 31... Rxd3 {[%clk 0:00:35.5]} 32.
Ke2 {[%clk 0:00:07.4]} 32... Rd4 {[%clk 0:00:35.2]} 33. g3 {[%clk 0:00:07.1]}
33... c4 {[%clk 0:00:33.7]} 34. Bc2 {[%clk 0:00:05.8]} 34... g5 {[%clk
0:00:29.7]} 35. Be3 {[%clk 0:00:06.1]} 35... Rd5 {[%clk 0:00:29.9]} 36. e6
{[%clk 0:00:03.7]} 36... fxe6 {[%clk 0:00:30.1]} 37. Kf3 {[%clk 0:00:03.5]}
37... h6 {[%clk 0:00:29.7]} 38. Ke4 {[%clk 0:00:03.9]} 38... Kf7 {[%clk
0:00:29.1]} 39. b3 {[%clk 0:00:01.4]} 39... cxb3 {[%clk 0:00:28.7]} 40. Bxb3
{[%clk 0:00:00.5]} 40... Rb5 {[%clk 0:00:28.6]} 41. Bc4 {[%clk 0:00:00.5]} 41...
Ra5 {[%clk 0:00:28.1]} 0-1